Workbook

Sheet 717-1
D2: Rw = | E2: =IF(E4<32,52-D4,"") -> 31
C4: 0.5 | D4: 21 | E4: =+E25 -> 29 | F4: =D4+C4 -> 21.5
A5: f | C5: Rmért | D5: eltolt vonatk. | E5: kedvezőtlen
A6: Hz | D6: görbe | E6: eltérés
A8: 100 | B8: 33 | C8: 20 | D8: =B8-D$4 -> 12 | E8: =IF(D8>C8,D8-C8,"") -> 
A9: 125 | B9: 36 | C9: 14 | D9: =B9-D$4 -> 15 | E9: =IF(D9>C9,D9-C9,"") -> 1
A10: 160 | B10: 39 | C10: 20 | D10: 18
A11: 200 | B11: 42 | C11: 24 | D11: 21
A12: 250 | B12: 45 | C12: 32 | D12: 24
A13: 315 | B13: 48 | C13: 28 | D13: 27
A14: 400 | B14: 51 | C14: 29 | D14: 30 | E14: 1
A15: 500 | B15: 52 | C15: 32 | D15: 31
A16: 630 | B16: 53 | C16: 32 | D16: 32
A17: 800 | B17: 54 | C17: 31 | D17: 33 | E17: 2
A18: 1000 | B18: 55 | C18: 27 | D18: 34 | E18: 7
A19: 1250 | B19: 56 | C19: 28 | D19: 35 | E19: 7
A20: 1600 | B20: 56 | C20: 28 | D20: 35 | E20: 7
A21: 2000 | B21: 56 | C21: 32 | D21: 35 | E21: 3
A22: 2500 | B22: 56 | C22: 34 | D22: 35 | E22: 1
A23: 3150 | B23: 56 | C23: 37 | D23: 35
E25: =SUM(E8:E23) -> 29
A29: 26.0399492 | B29: 18 | C29: 20
A30: 28.38716564 | B30: 22 | C30: 14
A31: 25.30527051 | B31: 19 | C31: 20
A32: 27.66848101 | B32: 26 | C32: 24
A33: 22.55405564 | B33: 30 | C33: 32
A34: 26.24523854 | B34: 32 | C34: 28
A35: 24.96526109 | B35: 34 | C35: 29
A36: 24.42922342 | B36: 38 | C36: 32
A37: 25.16904068 | B37: 38 | C37: 32
A38: 26.35349158 | B38: 39 | C38: 31
A39: 26.36917556 | B39: 41 | C39: 27
A40: 24.57171623 | B40: 42 | C40: 28
A41: 27.28432241 | B41: 40 | C41: 28
A42: 26.69734778 | B42: 38 | C42: 32
A43: 27.35832401 | B43: 36 | C43: 34
A44: 25.52650859 | B44: 35 | C44: 37

Sheet 717-2
D2: Ln,w = | E2: =D15 -> 46
C4: 0.5 | D4: 14 | F4: =D4+C4 -> 14.5
A5: f | C5: L'mért | D5: eltolt vonatk. | E5: kedvezőtlen | P5: =D25 -> 15
A6: Hz | D6: görbe | E6: eltérés
A8: 100 | B8: 62 | C8: =P8+Q8 -> 57.36713362 | D8: =B8-D$4 -> 48 | E8: =IF(C8>D8,C8-D8,"") -> 9.367133616 | P8: 59.4 | Q8: -2.032866384
A9: 125 | B9: 62 | C9: 56.0596459 | D9: =B9-D$4 -> 48 | E9: =IF(C9>D9,C9-D9,"") -> 8.059645904 | P9: 57.1 | Q9: -1.040354096
A10: 160 | B10: 62 | C10: 52.90713638 | D10: 48 | E10: 4.90713638 | P10: 54.7 | Q10: -1.79286362
A11: 200 | B11: 62 | C11: 51.20917024 | D11: 48 | E11: 3.209170241 | P11: 52.8 | Q11: -1.590829759
A12: 250 | B12: 62 | C12: 50.31768317 | D12: 48 | E12: 2.317683166 | P12: 50.3 | Q12: 0.01768316568
A13: 315 | B13: 62 | C13: 48.89016336 | D13: 48 | E13: 0.8901633615 | P13: 49.3 | Q13: -0.4098366385
A14: 400 | B14: 61 | C14: 45.3187345 | D14: 47 | P14: 46.3 | Q14: -0.9812654999
A15: 500 | B15: 60 | C15: 38.8704506 | D15: 46 | P15: 39 | Q15: -0.1295494025
A16: 630 | B16: 59 | C16: 32.59121507 | D16: 45 | P16: 33.2 | Q16: -0.6087849257
A17: 800 | B17: 58 | C17: 31.35855761 | D17: 44 | P17: 31.7 | Q17: -0.3414423932
A18: 1000 | B18: 57 | C18: 24.64382718 | D18: 43 | P18: 25.8 | Q18: -1.156172821
A19: 1250 | B19: 54 | C19: 25.4187345 | D19: 40 | P19: 26.4 | Q19: -0.9812654999
A20: 1600 | B20: 51 | C20: 26.24382718 | D20: 37 | P20: 27.4 | Q20: -1.156172821
A21: 2000 | B21: 48 | C21: 22.38705585 | D21: 34 | P21: 23.6 | Q21: -1.21294415
A22: 2500 | B22: 45 | C22: 23.43101707 | D22: 31 | P22: 24.7 | Q22: -1.268982926
A23: 3150 | B23: 42 | C23: 23.50135047 | D23: 28 | P23: 24.6 | Q23: -1.098649533
D25: =IF($E$25<32,$D$25+1,IF($E$25>32,$D$25-1,"")) -> 14 | E25: =SUM(E8:E23) -> 28.75093267

Sheet Munka1
C4: 0.5 | D4: 2.7 | E4: 3 | F4: 4.1 | G4: 4.5 | H4: 5.1 | I4: 4.5 | J4: 2.9 | K4: 0.7 | L4: 2
B5: K= | C5: =SUM(C4:L4) -> 30
B6: Ki= | C6: =POWER(10,C4/10) -> 1.122018454 | D6: =POWER(10,D4/10) -> 1.862087137 | E6: =POWER(10,E4/10) -> 1.995262315 | F6: 2.570395783 | G6: 2.818382931 | H6: 3.235936569 | I6: 2.818382931 | J6: 1.9498446 | K6: 1.174897555 | L6: 1.584893192
B7: Ski= | C7: =SUM(C6:L6) -> 21.13210147
B8: Lk= | C8: =10*LOG10(C7) -> 13.24942687

Sheet Munka2
C7: fI Hz | D7: Ln dB | E7: +19 dB-lel eltolt vonatkoztatási értékek dB | F7: Kedvezőtlen eltérés dB | G7: L'n,T dB | H7: L'n,wT (500) dB | I7: Kedvezőtlen eltérés dB
C8: 100 | D8: 62.1 | E8: 81 | G8: ='717-2'!C8 -> 57.36713362 | H8: ='717-2'!D8 -> 48 | I8: ='717-2'!E8 -> 9.367133616
C9: 125 | D9: 63.2 | E9: 81 | G9: ='717-2'!C9 -> 56.0596459 | H9: ='717-2'!D9 -> 48 | I9: ='717-2'!E9 -> 8.059645904 | K9: Ln.sum= | L9: =10*LOG10(POWER(10,$G$8/10)+POWER(10,$G$9/10)+POWER(10,$G$10/10)+POWER(10,$G$11/10)+POWER(10,$G$12/10)+POWER(10,$G$13/10)+POWER(10,$G$14/10)+POWER(10,$G$15/10)+POWER(10,$G$16/10)+POWER(10,$G$17/10)+POWER(10,$G$18/10)+POWER(10,$G$19/10)+POWER(10,$G$20/10)+POWER(10,$G$21/10)+POWER(10,$G$22/10)+POWER(10,$G$23/10)) -> 61.78418665 | M9: Ksum= | N9: =SUM(I8:I23) -> 28.75093267
C10: 160 | D10: 63.5 | E10: 81 | G10: ='717-2'!C10 -> 52.90713638 | H10: ='717-2'!D10 -> 48 | I10: ='717-2'!E10 -> 4.90713638
C11: 200 | D11: 66.2 | E11: 81 | G11: ='717-2'!C11 -> 51.20917024 | H11: ='717-2'!D11 -> 48 | I11: ='717-2'!E11 -> 3.209170241 | M11: Ksum= | N11: =SUM(F8:F23) -> 28
C12: 250 | D12: 68.5 | E12: 81 | G12: ='717-2'!C12 -> 50.31768317 | H12: ='717-2'!D12 -> 48 | I12: ='717-2'!E12 -> 2.317683166
C13: 315 | D13: 70 | E13: 81 | G13: ='717-2'!C13 -> 48.89016336 | H13: ='717-2'!D13 -> 48 | I13: ='717-2'!E13 -> 0.8901633615
C14: 400 | D14: 71.7 | E14: 81 | G14: ='717-2'!C14 -> 45.3187345 | H14: ='717-2'!D14 -> 47 | I14: ='717-2'!E14 -> 
C15: 500 | D15: 73.1 | E15: 79 | G15: ='717-2'!C15 -> 38.8704506 | H15: ='717-2'!D15 -> 46 | I15: ='717-2'!E15 -> 
C16: 630 | D16: 73.8 | E16: 78 | G16: ='717-2'!C16 -> 32.59121507 | H16: ='717-2'!D16 -> 45 | I16: ='717-2'!E16 -> 
C17: 800 | D17: 73.5 | E17: 77 | G17: ='717-2'!C17 -> 31.35855761 | H17: ='717-2'!D17 -> 44 | I17: ='717-2'!E17 -> 
C18: 1000 | D18: 73.8 | E18: 76 | G18: ='717-2'!C18 -> 24.64382718 | H18: ='717-2'!D18 -> 43 | I18: ='717-2'!E18 -> 
C19: 1250 | D19: 73.3 | E19: 73 | F19: 0.3 | G19: ='717-2'!C19 -> 25.4187345 | H19: ='717-2'!D19 -> 40 | I19: ='717-2'!E19 -> 
C20: 1600 | D20: 73.1 | E20: 70 | F20: 3.1 | G20: ='717-2'!C20 -> 26.24382718 | H20: ='717-2'!D20 -> 37 | I20: ='717-2'!E20 ->  | L20: Ci = | M20: =H24-15-H15 -> 0.7841866454
C21: 2000 | D21: 73 | E21: 67 | F21: 6 | G21: ='717-2'!C21 -> 22.38705585 | H21: ='717-2'!D21 -> 34 | I21: ='717-2'!E21 -> 
C22: 2500 | D22: 72.4 | E22: 64 | F22: 8.4 | G22: ='717-2'!C22 -> 23.43101707 | H22: ='717-2'!D22 -> 31 | I22: ='717-2'!E22 -> 
C23: 3150 | D23: 71.2 | E23: 61 | F23: 10.2 | G23: ='717-2'!C23 -> 23.50135047 | H23: ='717-2'!D23 -> 28 | I23: ='717-2'!E23 -> 
D24: L n.sum = 83.5 dB CI = 83.5 – 15 – 79 = – 10 dB | F24: Összeg 28.0 < 32.0 L n.w = 79 dB | G24: L'n.sum= | H24: =L9 -> 61.78418665 | I24: Összeg 30.0 < 32.0 L n.w = 64 dB
G25: CI = 76.1–15–64 = –3 dB
